[Event "AUT-ch U16-Open 2025"]
[Site "Fuerstenfeld"]
[Date "2025.04.15"]
[Round "5.1"]
[White "Squasi, Ernesto"]
[Black "Benedikt, Noah"]
[Result "1/2-1/2"]
[Annotator "NA RC"]
[ECO "C07"]
[WhiteElo "1904"]
[BlackElo "1976"]
[PlyCount "89"]
[EventDate "2025.04.12"]
[EventType "swiss"]
[EventCountry "AUT"]
[SourceTitle "playchess.com"]
[Source "ChessBase"]
[SourceQuality "1"]
[TimeControl "5400+30"]

1. e4 {[%emt 0:00:03]} e6 {[%emt 0:00:05]} 2. d4 {[%emt 0:00:04]} d5 {[%emt 0:00:05]} 3. Nd2 {[%emt 0:00:07]} c5 {[%emt 0:00:04]} 4. exd5 {[%emt 0:00:05]} Qxd5 {[%emt 0:00:07]} 5. dxc5 {[%emt 0:00:09]} Bxc5 {[%emt 0:01:50]} 6. Ngf3 {[%emt 0:00:44]} Nf6 {[%emt 0:00:58]} 7. Bc4 {[%emt 0:01:25]} Qd7 {[%emt 0:02:03]} 8. O-O {[%emt 0:02:30]} O-O {[%emt 0:00:31]} 9. Qe2 {[%emt 0:03:06]} a6 {[%emt 0:00:50]} 10. Ne4 {[%emt 0:08:33]} Nxe4 {[%emt 0:14:20]} 11. Qxe4 {[%emt 0:00:18]} Qc6 {[%emt 0:00:04]} 12. Qh4 {[%emt 0:17:32]} Be7 {[%emt 0:00:22]} 13. Qxe7 {[%emt 0:14:20]} Qxc4 {[%emt 0:00:06]} 14. b3 {[%emt 0:00:04]} Qb5 {[%emt 0:01:15]} 15. c4 {[%emt 0:11:52]} Qd7 {[%emt 0:02:44]} 16. Qh4 {[%emt 0:03:00]} Nc6 {[%emt 0:00:31]} 17. Bb2 {[%emt 0:09:42]} f6 {[%emt 0:04:14]} 18. Rad1 {[%emt 0:02:06]} Qc7 {[%emt 0:01:10]} 19. Nd4 {[%emt 0:05:19]} e5 {[%emt 0:01:23]} 20. Nxc6 {[%emt 0:00:20]} Qxc6 {[%emt 0:00:35]} 21. Ba3 {[%emt 0:02:19]} Re8 {[%emt 0:00:12]} 22. Rd6 {[%emt 0:00:42]} Qc7 {[%emt 0:00:05]} 23. Qe4 {[%emt 0:05:44]} Qa5 {[%emt 0:01:20]} 24. Qd5+ {[%emt 0:00:02]} Qxd5 {[%emt 0:00:10]} 25. Rxd5 {[%emt 0:00:03]} Be6 {[%emt 0:00:13]} 26. Rd6 {[%emt 0:00:11]} Rad8 {[%emt 0:00:21]} 27. Rfd1 {[%emt 0:00:10]} Rxd6 {[%emt 0:00:04]} 28. Rxd6 {[%emt 0:00:03]} Kf7 {[%emt 0:00:13]} 29. Rb6 {[%emt 0:00:14]} Bc8 {[%emt 0:00:29]} 30. Kf1 {[%emt 0:10:03]} Rd8 {[%emt 0:00:17]} 31. Bd6 {[%emt 0:00:16]} Rd7 {[%emt 0:00:53]} 32. Ke2 {[%emt 0:01:05]} Ke6 {[%emt 0:00:39]} 33. c5 {[%emt 0:00:42]} Kf5 {[%emt 0:02:34]} 34. Ke3 {[%emt 0:02:28]} Rf7 {[%emt 0:00:22]} 35. b4 {[%emt 0:00:54]} Rd7 {[%emt 0:17:58]} 36. a4 {[%emt 0:00:52]} Rd8 {[%emt 0:00:04]} 37. b5 {[%emt 0:01:15]} axb5 {[%emt 0:00:05]} 38. Rxb5 {[%emt 0:00:17]} Rg8 {[%emt 0:01:15]} 39. Rb6 {[%emt 0:00:36]} Ke6 {[%emt 0:00:39]} 40. a5 {[%emt 0:00:32]} Kd5 {[%emt 0:00:14]} 41. Kd3 {[%emt 0:00:27]} Rd8 {[%emt 0:00:56]} 42. f3 {[%emt 0:00:27]} Bf5+ {[%emt 0:02:20]} 43. Kc3 {[%emt 0:00:19]} Rd7 {[%emt 0:00:06]} 44. Rb4 {[%emt 0:00:56]} h5 {[%emt 0:00:39]} 45. Rb2 {[%emt 0:00:29]} 1/2-1/2

[Event "AUT-ch U16-Open 2025"]
[Site "Fuerstenfeld"]
[Date "2025.04.15"]
[Round "5.2"]
[White "Stickler, Florentin"]
[Black "Reichhuetter, Richard"]
[Result "1-0"]
[Annotator "RC"]
[ECO "B18"]
[WhiteElo "2189"]
[BlackElo "1916"]
[PlyCount "57"]
[EventDate "2025.04.12"]
[EventType "swiss"]
[EventCountry "AUT"]
[SourceTitle "playchess.com"]
[Source "ChessBase"]
[SourceQuality "1"]
[TimeControl "5400+30"]

1. e4 {[%emt 0:00:01]} c6 {[%emt 0:00:09]} 2. d4 {[%emt 0:00:04]} d5 {[%emt 0:00:01]} 3. Nc3 {[%emt 0:00:04]} dxe4 {[%emt 0:00:04]} 4. Nxe4 {[%emt 0:00:04]} Bf5 {[%emt 0:00:01]} 5. Nc5 {[%emt 0:00:06]} e5 {[%emt 0:00:33]} 6. Nxb7 {[%emt 0:00:40]} Qb6 {[%emt 0:00:04]} 7. Nc5 {[%emt 0:00:05]} exd4 {[%emt 0:00:04]} 8. Na4 {[%emt 0:00:58]} Qa5+ {[%emt 0:00:28]} 9. c3 {[%emt 0:00:06]} Nf6 {[%emt 0:00:21]} 10. Nf3 {[%emt 0:02:44]} dxc3 {[%emt 0:02:14]} 11. Nxc3 {[%emt 0:00:31]} Nbd7 {[%emt 0:00:46]} 12. Be2 {[%emt 0:04:55]} Bc5 {[%emt 0:00:12]} 13. Nd4 {[%emt 0:03:00]} Ne4 {[%emt 0:19:02]} 14. Nxf5 {[%emt 0:04:37]} Bxf2+ {[%emt 0:00:18]} 15. Kf1 {[%emt 0:00:04]} Qxf5 {[%emt 0:00:07]} 16. Bg4 {[%emt 0:00:40]} Nxc3 {[%emt 0:01:31]} 17. bxc3 {[%emt 0:00:10]} Qf6 {[%emt 0:02:16]} 18. Qxd7+ {[%emt 0:00:20]} Kf8 {[%emt 0:00:01]} 19. Qf5 {[%emt 0:00:46]} Bh4 {[%emt 0:01:26]} 20. Qxf6 {[%emt 0:00:36]} Bxf6 {[%emt 0:00:02]} 21. Ba3+ {[%emt 0:01:17]} Kg8 {[%emt 0:00:01]} 22. Bf3 {[%emt 0:01:02]} Bxc3 {[%emt 0:00:38]} 23. Rc1 {[%emt 0:00:15]} Bd4 {[%emt 0:00:17]} 24. Rxc6 {[%emt 0:00:12]} Re8 {[%emt 0:01:16]} 25. Bc5 {[%emt 0:00:35]} Bxc5 {[%emt 0:00:06]} 26. Rxc5 {[%emt 0:00:04]} g6 {[%emt 0:00:09]} 27. Kf2 {[%emt 0:00:16]} Kg7 {[%emt 0:00:03]} 28. Re1 {[%emt 0:01:04]} Rd8 {[%emt 0:00:17]} 29. Rc7 {[%emt 0:00:10]} 1-0

[Event "AUT-ch U16-Open 2025"]
[Site "Fuerstenfeld"]
[Date "2025.04.15"]
[Round "5.3"]
[White "Pausweg, Daniel"]
[Black "Prober, Raphael"]
[Result "1-0"]
[Annotator "RC"]
[ECO "A37"]
[WhiteElo "2080"]
[BlackElo "2131"]
[PlyCount "115"]
[EventDate "2025.04.12"]
[EventType "swiss"]
[EventCountry "AUT"]
[SourceTitle "playchess.com"]
[Source "ChessBase"]
[SourceQuality "1"]
[TimeControl "5400+30"]

1. Nf3 {[%emt 0:00:03]} c5 {[%emt 0:00:08]} 2. c4 {[%emt 0:00:15]} Nc6 {[%emt 0:00:29]} 3. Nc3 {[%emt 0:00:20]} g6 {[%emt 0:00:35]} 4. g3 {[%emt 0:00:45]} Bg7 {[%emt 0:00:07]} 5. Bg2 {[%emt 0:00:18]} e5 {[%emt 0:00:17]} 6. d3 {[%emt 0:01:18]} Nge7 {[%emt 0:00:08]} 7. Be3 {[%emt 0:01:03]} d6 {[%emt 0:01:06]} 8. O-O {[%emt 0:00:32]} O-O {[%emt 0:00:07]} 9. a3 {[%emt 0:01:02]} h6 {[%emt 0:03:18]} 10. Qc1 {[%emt 0:01:12]} Kh7 {[%emt 0:00:09]} 11. Rb1 {[%emt 0:00:18]} a5 {[%emt 0:00:33]} 12. Ne1 {[%emt 0:01:56]} f5 {[%emt 0:04:40]} 13. Nc2 {[%emt 0:01:10]} a4 {[%emt 0:01:26]} 14. Bd2 {[%emt 0:02:11]} Nd4 {[%emt 0:06:08]} 15. Nxd4 {[%emt 0:01:59]} cxd4 {[%emt 0:00:42]} 16. Nd5 {[%emt 0:00:50]} Be6 {[%emt 0:01:17]} 17. Nxe7 {[%emt 0:00:51]} Qxe7 {[%emt 0:00:02]} 18. f4 {[%emt 0:03:03]} e4 {[%emt 0:02:49]} 19. Bb4 {[%emt 0:04:00]} Rfc8 {[%emt 0:01:37]} 20. Qd2 {[%emt 0:02:25]} Bf7 {[%emt 0:02:48]} 21. Rfc1 {[%emt 0:01:20]} Ra6 {[%emt 0:03:15]} 22. Kh1 {[%emt 0:02:28]} Qe8 {[%emt 0:02:01]} 23. c5 {[%emt 0:06:57]} dxc5 {[%emt 0:01:40]} 24. Rxc5 {[%emt 0:01:24]} Rac6 {[%emt 0:01:00]} 25. Rbc1 {[%emt 0:01:20]} Bd5 {[%emt 0:01:15]} 26. Rxc6 {[%emt 0:04:16]} Rxc6 {[%emt 0:01:02]} 27. h3 {[%emt 0:06:01]} h5 {[%emt 0:00:49]} 28. h4 {[%emt 0:02:14]} Qc8 {[%emt 0:00:59]} 29. Rxc6 {[%emt 0:00:15]} Qxc6 {[%emt 0:00:01]} 30. dxe4 {[%emt 0:01:45]} fxe4 {[%emt 0:01:39]} 31. Qd1 {[%emt 0:03:00]} d3 {[%emt 0:00:55]} 32. exd3 {[%emt 0:08:23]} exd3 {[%emt 0:00:02]} 33. Qd2 {[%emt 0:00:10]} Bxg2+ {[%emt 0:00:25]} 34. Qxg2 {[%emt 0:00:18]} Qxg2+ {[%emt 0:00:08]} 35. Kxg2 {[%emt 0:00:10]} Bxb2 {[%emt 0:00:03]} 36. Kf3 {[%emt 0:00:17]} Bc1 {[%emt 0:00:22]} 37. Kf2 {[%emt 0:01:42]} Kg7 {[%emt 0:00:49]} 38. Ke1 {[%emt 0:00:11]} Kf6 {[%emt 0:00:15]} 39. Bc5 {[%emt 0:00:39]} Kf5 {[%emt 0:00:30]} 40. Kd1 {[%emt 0:00:17]} d2 {[%emt 0:00:21]} 41. Kc2 {[%emt 0:00:37]} Kg4 {[%emt 0:00:28]} 42. Bd6 {[%emt 0:00:17]} Kf3 {[%emt 0:00:05]} 43. Kd1 {[%emt 0:01:00]} b5 {[%emt 0:00:36]} 44. Be5 {[%emt 0:01:27]} Ke3 {[%emt 0:00:39]} 45. Bd6 {[%emt 0:00:28]} Kd3 {[%emt 0:00:10]} 46. g4 {[%emt 0:02:10]} hxg4 {[%emt 0:00:15]} 47. f5 {[%emt 0:00:23]} gxf5 {[%emt 0:00:16]} 48. h5 {[%emt 0:00:37]} Bb2 {[%emt 0:02:45]} 49. h6 {[%emt 0:00:22]} Bh8 {[%emt 0:00:45]} 50. h7 {[%emt 0:01:49]} Bg7 {[%emt 0:00:07]} 51. Be5 {[%emt 0:00:17]} g3 {[%emt 0:00:25]} 52. Bxg7 {[%emt 0:00:25]} g2 {[%emt 0:00:04]} 53. Bd4 {[%emt 0:00:09]} Kxd4 {[%emt 0:00:11]} 54. h8=Q+ {[%emt 0:00:13]} Ke3 {[%emt 0:00:25]} 55. Qe5+ {[%emt 0:00:57]} Kf2 {[%emt 0:00:13]} 56. Qf4+ {[%emt 0:00:30]} Kg1 {[%emt 0:00:18]} 57. Kxd2 {[%emt 0:00:24]} b4 {[%emt 0:00:43]} 58. Qxb4 {[%emt 0:00:22]} 1-0

[Event "AUT-ch U16-Open 2025"]
[Site "Fuerstenfeld"]
[Date "2025.04.15"]
[Round "5.4"]
[White "Martinovic, David"]
[Black "Ortner, Sebastian"]
[Result "0-1"]
[Annotator "NA RC"]
[ECO "C55"]
[WhiteElo "1968"]
[BlackElo "1925"]
[PlyCount "92"]
[EventDate "2025.04.12"]
[EventType "swiss"]
[EventCountry "AUT"]
[SourceTitle "playchess.com"]
[Source "ChessBase"]
[SourceQuality "1"]
[TimeControl "5400+30"]

1. e4 {[%emt 0:00:03]} e5 {[%emt 0:00:03]} 2. Nf3 {[%emt 0:00:07]} Nc6 {[%emt 0:00:06]} 3. Bc4 {[%emt 0:00:12]} Nf6 {[%emt 0:00:11]} 4. d3 {[%emt 0:01:03]} h6 {[%emt 0:00:28]} 5. Nc3 {[%emt 0:05:11]} d6 {[%emt 0:00:32]} 6. h3 {[%emt 0:02:12]} Na5 {[%emt 0:01:41]} 7. Qe2 {[%emt 0:02:37]} Nxc4 {[%emt 0:02:50]} 8. dxc4 {[%emt 0:00:02]} c6 {[%emt 0:02:47]} 9. Be3 {[%emt 0:04:42]} Qc7 {[%emt 0:02:16]} 10. Rd1 {[%emt 0:02:59]} Be7 {[%emt 0:03:20]} 11. a3 {[%emt 0:06:59]} Be6 {[%emt 0:01:41]} 12. b4 {[%emt 0:00:42]} Rd8 {[%emt 0:08:09]} 13. O-O {[%emt 0:06:53]} O-O {[%emt 0:01:55]} 14. Nd2 {[%emt 0:03:48]} b5 {[%emt 0:17:37]} 15. f4 {[%emt 0:05:46]} a6 {[%emt 0:13:37]} 16. Qf2 {[%emt 0:20:30]} Rb8 {[%emt 0:05:19]} 17. fxe5 {[%emt 0:04:54]} dxe5 {[%emt 0:00:07]} 18. c5 {[%emt 0:01:00]} a5 {[%emt 0:04:27]} 19. Nf3 {[%emt 0:09:03]} Nh5 {[%emt 0:06:53]} 20. Nh4 {[%emt 0:10:46]} Nf4 {[%emt 0:14:04]} 21. Nf5 {[%emt 0:05:08]} Ng6 {[%emt 0:01:53]} 22. Nxe7+ {[%emt 0:03:10]} Nxe7 {[%emt 0:00:11]} 23. Rd6 {[%emt 0:01:09]} axb4 {[%emt 0:01:22]} 24. axb4 {[%emt 0:00:08]} Ra8 {[%emt 0:00:54]} 25. Qg3 {[%emt 0:01:20]} Ng6 {[%emt 0:03:04]} 26. Bxh6 {[%emt 0:02:31]} gxh6 {[%emt 0:01:59]} 27. Rf6 {[%emt 0:00:25]} Kh8 {[%emt 0:01:44]} 28. Rfxe6 {[%emt 0:00:35]} fxe6 {[%emt 0:00:21]} 29. Rxe6 {[%emt 0:00:30]} Rg8 {[%emt 0:02:07]} 30. Rxg6 {[%emt 0:00:17]} Kh7 {[%emt 0:00:43]} 31. Rg4 {[%emt 0:00:42]} Rxg4 {[%emt 0:00:38]} 32. Qxg4 {[%emt 0:00:01]} Qf7 {[%emt 0:00:38]} 33. Qf3 {[%emt 0:00:57]} Qxf3 {[%emt 0:00:17]} 34. gxf3 {[%emt 0:00:01]} Ra3 {[%emt 0:00:13]} 35. Nd5 {[%emt 0:00:52]} cxd5 {[%emt 0:01:22]} 36. exd5 {[%emt 0:00:03]} Kg7 {[%emt 0:00:22]} 37. c6 {[%emt 0:00:58]} Kf7 {[%emt 0:00:23]} 38. c4 {[%emt 0:00:36]} bxc4 {[%emt 0:00:54]} 39. Kf2 {[%emt 0:00:26]} Ke7 {[%emt 0:00:39]} 40. b5 {[%emt 0:00:27]} Kd6 {[%emt 0:00:46]} 41. b6 {[%emt 0:00:15]} Rb3 {[%emt 0:00:39]} 42. b7 {[%emt 0:00:20]} Kc7 {[%emt 0:00:09]} 43. Ke2 {[%emt 0:00:34]} Rd3 {[%emt 0:00:10]} 44. h4 {[%emt 0:00:43]} Rxd5 {[%emt 0:00:14]} 45. Ke3 {[%emt 0:00:33]} Rd4 {[%emt 0:00:26]} 46. f4 {[%emt 0:00:24]} Rxf4 {[%emt 0:00:17]} 0-1

[Event "AUT-ch U16-Open 2025"]
[Site "Fuerstenfeld"]
[Date "2025.04.15"]
[Round "5.5"]
[White "Guba, Viktor"]
[Black "Chen, Chicheng Leon"]
[Result "0-1"]
[Annotator "NA RC"]
[ECO "B22"]
[WhiteElo "1931"]
[BlackElo "2021"]
[PlyCount "96"]
[EventDate "2025.04.12"]
[EventType "swiss"]
[EventCountry "AUT"]
[SourceTitle "playchess.com"]
[Source "ChessBase"]
[SourceQuality "1"]
[TimeControl "5400+30"]

1. e4 {[%emt 0:00:05]} c5 {[%emt 0:00:09]} 2. c3 {[%emt 0:00:14]} Nf6 {[%emt 0:00:07]} 3. e5 {[%emt 0:00:34]} Nd5 {[%emt 0:00:11]} 4. d4 {[%emt 0:00:38]} cxd4 {[%emt 0:00:09]} 5. Nf3 {[%emt 0:00:10]} Nc6 {[%emt 0:00:05]} 6. cxd4 {[%emt 0:00:07]} d6 {[%emt 0:00:28]} 7. Bc4 {[%emt 0:00:43]} dxe5 {[%emt 0:00:08]} 8. Nxe5 {[%emt 0:00:55]} e6 {[%emt 0:00:06]} 9. O-O {[%emt 0:01:03]} Be7 {[%emt 0:00:08]} 10. Nxc6 {[%emt 0:02:32]} bxc6 {[%emt 0:00:06]} 11. Nc3 {[%emt 0:00:39]} O-O {[%emt 0:02:11]} 12. a3 {[%emt 0:06:04]} Qb6 {[%emt 0:08:41]} 13. Ne4 {[%emt 0:05:42]} Nf6 {[%emt 0:06:24]} 14. Bg5 {[%emt 0:07:50]} Nxe4 {[%emt 0:11:10]} 15. Bxe7 {[%emt 0:00:05]} Re8 {[%emt 0:00:03]} 16. Bb4 {[%emt 0:00:57]} a5 {[%emt 0:02:01]} 17. Bc3 {[%emt 0:00:45]} Ba6 {[%emt 0:02:21]} 18. Bxa6 {[%emt 0:01:42]} Qxa6 {[%emt 0:00:11]} 19. Qf3 {[%emt 0:00:56]} Nf6 {[%emt 0:02:02]} 20. Rfe1 {[%emt 0:01:44]} Rad8 {[%emt 0:05:24]} 21. Re5 {[%emt 0:01:26]} Rd5 {[%emt 0:03:29]} 22. Rae1 {[%emt 0:00:29]} Red8 {[%emt 0:07:02]} 23. h3 {[%emt 0:02:55]} h6 {[%emt 0:06:14]} 24. Qe2 {[%emt 0:03:24]} Qxe2 {[%emt 0:11:36]} 25. R1xe2 {[%emt 0:00:06]} a4 {[%emt 0:00:45]} 26. Re1 {[%emt 0:02:34]} Rb8 {[%emt 0:04:11]} 27. Kh2 {[%emt 0:02:35]} Rdb5 {[%emt 0:05:19]} 28. Rxb5 {[%emt 0:02:18]} cxb5 {[%emt 0:00:29]} 29. Bb4 {[%emt 0:02:47]} Rc8 {[%emt 0:00:28]} 30. Bc5 {[%emt 0:01:12]} Nd7 {[%emt 0:00:31]} 31. Rc1 {[%emt 0:00:30]} Nb6 {[%emt 0:01:18]} 32. Rc3 {[%emt 0:01:45]} Nd5 {[%emt 0:00:40]} 33. Rg3 {[%emt 0:01:38]} f6 {[%emt 0:00:52]} 34. b4 {[%emt 0:01:36]} Kf7 {[%emt 0:02:34]} 35. Kg1 {[%emt 0:00:48]} g5 {[%emt 0:01:45]} 36. Kf1 {[%emt 0:01:42]} h5 {[%emt 0:00:30]} 37. Rd3 {[%emt 0:02:44]} Kg6 {[%emt 0:00:45]} 38. Kg1 {[%emt 0:03:04]} Kf5 {[%emt 0:00:52]} 39. f3 {[%emt 0:03:30]} Nf4 {[%emt 0:02:44]} 40. Re3 {[%emt 0:03:10]} h4 {[%emt 0:01:55]} 41. Kf2 {[%emt 0:03:08]} Rd8 {[%emt 0:01:57]} 42. Rc3 {[%emt 0:04:04]} e5 {[%emt 0:02:22]} 43. Bb6 {[%emt 0:01:15]} Rd6 {[%emt 0:00:50]} 44. Bc5 {[%emt 0:02:35]} exd4 {[%emt 0:00:25]} 45. Rc2 {[%emt 0:00:08]} Rd5 {[%emt 0:00:37]} 46. Rd2 {[%emt 0:00:24]} d3 {[%emt 0:03:14]} 47. Ke3 {[%emt 0:01:04]} Re5+ {[%emt 0:00:23]} 48. Kf2 {[%emt 0:00:07]} Re2+ {[%emt 0:00:37]} 0-1

[Event "AUT-ch U16-Open 2025"]
[Site "Fuerstenfeld"]
[Date "2025.04.15"]
[Round "5.6"]
[White "Wu, Chenshan"]
[Black "Nicolussi, Hieronymus"]
[Result "0-1"]
[Annotator "NA RC"]
[ECO "E92"]
[WhiteElo "2011"]
[BlackElo "1999"]
[PlyCount "82"]
[EventDate "2025.04.12"]
[EventType "swiss"]
[EventCountry "AUT"]
[SourceTitle "playchess.com"]
[Source "ChessBase"]
[SourceQuality "1"]
[TimeControl "5400+30"]

1. d4 {[%emt 0:00:02]} Nf6 {[%emt 0:00:04]} 2. c4 {[%emt 0:00:04]} g6 {[%emt 0:00:03]} 3. Nc3 {[%emt 0:00:06]} Bg7 {[%emt 0:00:02]} 4. e4 {[%emt 0:00:07]} d6 {[%emt 0:00:02]} 5. Nf3 {[%emt 0:00:07]} O-O {[%emt 0:00:07]} 6. Be2 {[%emt 0:00:03]} e5 {[%emt 0:00:05]} 7. O-O {[%emt 0:00:12]} h6 {[%emt 0:00:21]} 8. d5 {[%emt 0:01:10]} a5 {[%emt 0:00:32]} 9. Ne1 {[%emt 0:01:27]} Na6 {[%emt 0:01:05]} 10. Nd3 {[%emt 0:00:48]} b6 {[%emt 0:01:03]} 11. Be3 {[%emt 0:02:18]} Nc5 {[%emt 0:01:44]} 12. f3 {[%emt 0:00:58]} Bd7 {[%emt 0:07:46]} 13. b3 {[%emt 0:02:55]} Nh5 {[%emt 0:02:25]} 14. a3 {[%emt 0:13:37]} Nf4 {[%emt 0:07:51]} 15. Kh1 {[%emt 0:04:12]} f5 {[%emt 0:08:41]} 16. Rb1 {[%emt 0:07:38]} Nfxd3 {[%emt 0:10:13]} 17. Bxd3 {[%emt 0:00:14]} f4 {[%emt 0:00:26]} 18. Bf2 {[%emt 0:00:24]} g5 {[%emt 0:04:28]} 19. Be2 {[%emt 0:08:51]} h5 {[%emt 0:03:41]} 20. b4 {[%emt 0:00:40]} axb4 {[%emt 0:00:39]} 21. axb4 {[%emt 0:00:12]} Na6 {[%emt 0:00:38]} 22. h3 {[%emt 0:21:25]} Rf6 {[%emt 0:04:47]} 23. Na2 {[%emt 0:15:47]} Qc8 {[%emt 0:02:58]} 24. Kh2 {[%emt 0:07:51]} Rh6 {[%emt 0:04:23]} 25. h4 {[%emt 0:01:32]} Qd8 {[%emt 0:06:15]} 26. Qe1 {[%emt 0:05:49]} Bf6 {[%emt 0:07:12]} 27. Rh1 {[%emt 0:01:46]} g4 {[%emt 0:02:46]} 28. g3 {[%emt 0:00:23]} Rg6 {[%emt 0:01:14]} 29. Rg1 {[%emt 0:00:53]} Bxh4 {[%emt 0:02:02]} 30. gxf4 {[%emt 0:03:26]} Bxf2 {[%emt 0:00:53]} 31. Qxf2 {[%emt 0:00:27]} g3+ {[%emt 0:00:15]} 32. Qxg3 {[%emt 0:00:32]} Rxg3 {[%emt 0:00:20]} 33. Rxg3+ {[%emt 0:00:07]} Kh7 {[%emt 0:00:43]} 34. fxe5 {[%emt 0:00:53]} dxe5 {[%emt 0:00:32]} 35. Rbg1 {[%emt 0:00:23]} Qh4+ {[%emt 0:01:03]} 36. Kg2 {[%emt 0:00:14]} Rg8 {[%emt 0:00:09]} 37. Kf2 {[%emt 0:00:31]} Rxg3 {[%emt 0:01:01]} 38. Rxg3 {[%emt 0:00:10]} Qe7 {[%emt 0:03:52]} 39. c5 {[%emt 0:00:28]} Nxc5 {[%emt 0:00:18]} 40. bxc5 {[%emt 0:00:15]} Qxc5+ {[%emt 0:00:06]} 41. Kf1 {[%emt 0:01:19]} Qc2 {[%emt 0:00:34]} 0-1

[Event "AUT-ch U16-Open 2025"]
[Site "Fuerstenfeld"]
[Date "2025.04.15"]
[Round "5.7"]
[White "Haselsberger, Armin"]
[Black "Roessler, Felix"]
[Result "1/2-1/2"]
[Annotator "NA RC"]
[ECO "E01"]
[WhiteElo "2004"]
[BlackElo "1840"]
[PlyCount "129"]
[EventDate "2025.04.12"]
[EventType "swiss"]
[EventCountry "AUT"]
[SourceTitle "playchess.com"]
[Source "ChessBase"]
[SourceQuality "1"]
[TimeControl "5400+30"]

1. d4 {[%emt 0:00:33]} d5 {[%emt 0:00:13]} 2. c4 {[%emt 0:00:32]} e6 {[%emt 0:00:05]} 3. Nf3 {[%emt 0:00:35]} Nf6 {[%emt 0:00:09]} 4. g3 {[%emt 0:00:30]} Ne4 {[%emt 0:00:10]} 5. Bg2 {[%emt 0:02:30]} Be7 {[%emt 0:00:22]} 6. O-O {[%emt 0:00:36]} f5 {[%emt 0:00:10]} 7. Qc2 {[%emt 0:01:53]} c6 {[%emt 0:00:35]} 8. Rd1 {[%emt 0:02:26]} Nd7 {[%emt 0:01:36]} 9. Nbd2 {[%emt 0:02:56]} h5 {[%emt 0:00:33]} 10. Ne5 {[%emt 0:01:52]} Nxe5 {[%emt 0:00:58]} 11. dxe5 {[%emt 0:00:02]} h4 {[%emt 0:01:38]} 12. Nxe4 {[%emt 0:00:19]} fxe4 {[%emt 0:00:49]} 13. Bxe4 {[%emt 0:00:11]} O-O {[%emt 0:04:07]} 14. Bh7+ {[%emt 0:01:32]} Kh8 {[%emt 0:00:15]} 15. Qg6 {[%emt 0:02:09]} Qe8 {[%emt 0:04:42]} 16. Qxe8 {[%emt 0:00:18]} Rxe8 {[%emt 0:00:11]} 17. Bg6 {[%emt 0:00:05]} Rf8 {[%emt 0:00:56]} 18. Rd4 {[%emt 0:01:24]} Bd7 {[%emt 0:03:08]} 19. gxh4 {[%emt 0:00:37]} Be8 {[%emt 0:00:22]} 20. Bc2 {[%emt 0:03:01]} Bh5 {[%emt 0:01:02]} 21. Bd3 {[%emt 0:01:34]} c5 {[%emt 0:01:42]} 22. Rf4 {[%emt 0:00:14]} Rxf4 {[%emt 0:00:15]} 23. Bxf4 {[%emt 0:00:02]} Bxh4 {[%emt 0:00:29]} 24. Rc1 {[%emt 0:02:26]} b6 {[%emt 0:02:46]} 25. Rc3 {[%emt 0:01:06]} Rf8 {[%emt 0:02:03]} 26. Bg3 {[%emt 0:01:08]} Bg5 {[%emt 0:00:41]} 27. Ra3 {[%emt 0:01:20]} Rf7 {[%emt 0:06:22]} 28. e3 {[%emt 0:08:13]} Bf3 {[%emt 0:02:37]} 29. cxd5 {[%emt 0:02:14]} exd5 {[%emt 0:00:53]} 30. e6 {[%emt 0:00:14]} Re7 {[%emt 0:01:58]} 31. Bf5 {[%emt 0:00:12]} Bf6 {[%emt 0:03:03]} 32. Bb8 {[%emt 0:03:35]} g6 {[%emt 0:06:37]} 33. Bh3 {[%emt 0:00:23]} a5 {[%emt 0:00:27]} 34. Rb3 {[%emt 0:00:46]} Rb7 {[%emt 0:00:45]} 35. Bd6 {[%emt 0:00:04]} a4 {[%emt 0:03:02]} 36. Rd3 {[%emt 0:03:53]} Kg7 {[%emt 0:04:45]} 37. Ra3 {[%emt 0:11:32]} Bxb2 {[%emt 0:08:07]} 38. Rxa4 {[%emt 0:00:10]} Bf6 {[%emt 0:08:51]} 39. Ra8 {[%emt 0:19:56]} Be4 {[%emt 0:03:41]} 40. Rc8 {[%emt 0:04:07]} Bf5 {[%emt 0:01:27]} 41. Bxf5 {[%emt 0:00:14]} gxf5 {[%emt 0:00:13]} 42. Kf1 {[%emt 0:00:38]} c4 {[%emt 0:06:27]} 43. Ke1 {[%emt 0:02:14]} b5 {[%emt 0:01:15]} 44. a3 {[%emt 0:00:11]} Be7 {[%emt 0:02:51]} 45. Bxe7 {[%emt 0:00:50]} Rxe7 {[%emt 0:00:09]} 46. Rc5 {[%emt 0:00:07]} Ra7 {[%emt 0:01:11]} 47. Rxd5 {[%emt 0:00:45]} Kf6 {[%emt 0:00:27]} 48. Rxb5 {[%emt 0:00:16]} Rxa3 {[%emt 0:00:14]} 49. Rb6 {[%emt 0:00:30]} Ra1+ 50. Ke2 {[%emt 0:00:30]} Rh1 {[%emt 0:01:00]} 51. Rc6 {[%emt 0:00:30]} Rxh2 {[%emt 0:00:30]} 52. Rxc4 {[%emt 0:00:30]} Kxe6 {[%emt 0:00:30]} 53. Rc5 {[%emt 0:00:30]} Rh4 {[%emt 0:00:30]} 54. Kf3 {[%emt 0:00:30]} Rg4 {[%emt 0:00:30]} 55. Ra5 {[%emt 0:00:30]} Rb4 {[%emt 0:00:30]} 56. Kg3 {[%emt 0:00:30]} Rg4+ {[%emt 0:00:30]} 57. Kf3 {[%emt 0:00:30]} Rb4 {[%emt 0:00:30]} 58. Ra2 {[%emt 0:00:30]} Rg4 {[%emt 0:00:30]} 59. Rd2 {[%emt 0:00:30]} Ke5 {[%emt 0:00:30]} 60. Ke2 {[%emt 0:00:30]} Ra4 {[%emt 0:00:30]} 61. f4+ {[%emt 0:00:30]} Ke4 {[%emt 0:00:30]} 62. Kf2 {[%emt 0:00:30]} Rb4 {[%emt 0:00:30]} 63. Ke2 {[%emt 0:00:30]} Ra4 {[%emt 0:00:30]} 64. Rd8 {[%emt 0:00:30]} Ra2+ {[%emt 0:00:30]} 65. Rd2 {[%emt 0:00:30]} 1/2-1/2